bitfinex-derivatives/quotes_ETHF0:USTF0_20250114
["timestamp","ask_amount","ask_price","bid_price","bid_amount"]
[1736855610092,0.31092,3217.7,3217.6,2.75676226]
[1736855611200,0.4543,3217.9,3217.4,3.2078]
[1736855611403,0.31094,3217.5,3217.4,3.2078]
[1736855611994,0.31099,3216.9,3216.8,3.2078]
[1736855612195,0.31099,3216.9,3216.8,3.5188]
[1736855612396,0.31099,3216.9,3216.8,44.3188]
[1736855612997,0.31099,3216.9,3216.8,44.0078]
[1736855617605,0.31099,3216.9,3216.8,44.3188]
[1736855618710,0.31096,3217.3,3217.2,0.31096]
[1736855619306,0.31096,3217.3,3217.2,41.11096]
[1736855620004,0.31096,3217.3,3217.2,40.8]
[1736855623004,0.31096,3217.3,3217.2,41.11097]
[1736855624907,3.2078,3217.7,3217.2,40.8]
[1736855625112,0.31094,3217.6,3217.5,0.31093]
[1736855627718,0.3109,3217.9,3217.7,0.31092]
[1736855628017,0.3109,3217.9,3217.8,3.25535226]
[1736855628219,0.3109,3217.9,3217.8,0.80951]
[1736855628513,0.31091,3217.8,3217.7,2.44584226]
[1736855628715,0.31091,3217.8,3217.7,2.75676226]
[1736855628916,4.6365,3218.2,3217.7,2.44584226]
[1736855629116,0.3109,3218.0,3217.9,0.31089]
[1736855629316,0.3109,3218.0,3217.9,2.44584226]
[1736855630421,0.3109,3218.0,3217.9,2.75674226]
[1736855632915,0.3109,3218.0,3217.9,2.44584226]
[1736855635225,0.3109,3218.0,3217.9,2.75674226]
[1736855649630,0.31088,3218.1,3218.0,0.31088]
[1736855650840,0.31089,3218.0,3217.9,2.75673226]
[1736855660139,0.31088,3218.1,3218.0,0.31088]
[1736855664434,0.31088,3218.1,3218.0,0.18949804]
[1736855665343,1.4287,3218.2,3218.0,0.18949804]
[1736855665344,0.31085,3218.4,3218.3,0.31086]
[1736855665837,0.31085,3218.4,3218.3,42.27041185]
[1736855666039,0.31085,3218.4,3218.3,42.28268906]
[1736855667343,0.31085,3218.4,3218.3,43.57284434]
[1736855668638,0.31085,3218.4,3218.3,43.5771905]
[1736855672043,0.4892,3218.7,3218.6,0.31083]
[1736855672245,0.4892,3218.7,3218.6,2.76053713]
[1736855672546,0.4892,3218.7,3218.6,5.96833713]
[1736855672748,0.4892,3218.7,3218.6,5.9849605]
[1736855673342,0.9687,3219.0,3218.9,0.3108]
[1736855673549,0.31076,3219.4,3219.3,0.31076]
[1736855673741,0.79376,3219.4,3219.3,2.7770905]
[1736855673943,0.79376,3219.4,3219.3,2.4663305]
[1736855674146,0.79376,3219.4,3219.3,2.7770905]
[1736855674548,0.79376,3219.4,3219.3,0.32738337]
[1736855675042,0.79376,3219.4,3219.3,0.01662337]
[1736855677443,0.483,3219.4,3219.3,0.32738337]
[1736855677845,0.79375,3219.4,3219.3,0.32738337]
[1736855678248,0.79375,3219.4,3219.3,0.33289397]
[1736855678653,0.79375,3219.4,3219.3,0.34526754]
[1736855679256,0.79375,3219.4,3219.3,41.14526754]
[1736855679954,0.79655789,3219.4,3219.3,41.14526754]
[1736855681956,0.48580789,3219.4,3219.3,41.14526754]
[1736855682158,0.79655789,3219.4,3219.3,41.14526754]
[1736855684257,0.48580789,3219.4,3219.3,41.14526754]
[1736855685260,0.79655789,3219.4,3219.3,41.14526754]
[1736855688062,0.48580789,3219.4,3219.3,41.14526754]
[1736855688265,0.79655789,3219.4,3219.3,41.14526754]
[1736855695467,0.79655789,3219.4,3219.3,42.30421977]
[1736855703072,0.79655789,3219.4,3218.8,3.2078]
[1736855703376,0.3108,3218.9,3218.8,3.2078]
[1736855703575,0.3108,3218.9,3218.8,45.16675223]
[1736855704391,0.3108,3218.9,3218.8,45.47756223]
[1736855705484,0.3108,3218.9,3218.8,45.16675223]
[1736855707990,0.3108,3218.9,3218.8,41.95895223]
[1736855716980,0.31081,3218.8,3218.7,1.15895223]
[1736855717785,0.31081,3218.8,3218.7,41.95895223]
[1736855731397,0.31081,3218.8,3218.7,40.8]
[1736855731798,0.31083,3218.6,3218.5,1.15895223]
[1736855732598,0.77373,3218.6,3218.5,1.15895223]
[1736855732800,0.77373,3218.6,3218.5,41.95895223]
[1736855739113,0.31083,3218.6,3218.5,41.95895223]
[1736855739410,0.31083,3218.6,3218.5,42.26979223]
[1736855741715,0.31083,3218.6,3218.5,41.95895223]
[1736855745618,0.31083,3218.6,3218.5,42.26979223]
[1736855746313,3.6972,3218.9,3218.5,41.95895223]
[1736855746509,3.6972,3218.9,3218.5,41.57709]
[1736855746714,3.51861,3218.9,3218.8,0.31081]
[1736855746914,3.51861,3218.9,3218.8,0.20392839]
[1736855747313,0.31081,3218.9,3218.8,0.20392839]
[1736855748218,4.6198,3219.3,3218.8,1.15895223]
[1736855748514,0.77597,3219.3,3219.2,0.31077]
[1736855748821,0.00280789,3219.4,3219.3,0.31076]
[1736855748822,0.31355789,3219.4,3219.3,0.31076]
[1736855749616,0.31355789,3219.4,3219.3,1.46971223]
[1736855750609,0.31355789,3219.4,3219.3,1.15895223]
[1736855751323,0.31075,3219.4,3219.3,1.15895223]
[1736855752416,0.76815,3219.4,3219.3,1.15895223]
[1736855753223,0.76815,3219.4,3219.3,1.46971223]
[1736855753423,0.76815,3219.4,3219.3,0.31076]
[1736855753722,0.77095789,3219.4,3219.3,0.31076]
[1736855754024,0.31076,3219.3,3219.2,2.75926191]
[1736855754518,0.46020789,3219.4,3219.2,2.44849191]
[1736855754718,0.46020789,3219.4,3219.3,0.31076]
[1736855754719,0.31356789,3219.4,3219.3,0.31076]
[1736855756319,0.00280789,3219.4,3219.3,0.31076]
[1736855756516,0.00280789,3219.4,3219.3,0.79716]
[1736855756916,0.00280789,3219.4,3219.3,41.59716]
[1736855757119,0.31355789,3219.4,3219.3,41.59716]
[1736855757315,0.00280789,3219.4,3219.3,41.59716]
[1736855761121,0.31355789,3219.4,3219.3,41.11076]
[1736855763921,0.00280789,3219.4,3219.3,41.11076]
[1736855764823,0.31355789,3219.4,3219.3,41.11076]
[1736855765017,0.78765789,3219.4,3219.3,41.11076]
[1736855765421,0.31355789,3219.4,3219.3,41.11076]
[1736855765623,0.00280789,3219.4,3219.3,41.11076]
[1736855765827,0.31355789,3219.4,3219.3,41.11076]
[1736855766522,0.00280789,3219.4,3219.3,41.11076]
[1736855767726,0.31355789,3219.4,3219.3,41.11076]
[1736855768030,0.00280789,3219.4,3219.3,41.11076]
[1736855769621,0.00280789,3219.4,3219.3,41.11586]
[1736855771627,0.00280789,3219.4,3219.3,41.11076]
[1736855772724,0.31355789,3219.4,3219.3,41.11076]
[1736855772929,0.77925789,3219.4,3219.3,40.8]
[1736855774231,0.77925789,3219.4,3219.3,41.11076]
[1736855774432,0.77925789,3219.4,3219.3,40.8]
[1736855777136,0.31079,3219.0,3218.9,1.24]
[1736855777932,0.31079,3219.0,3218.9,1.5508]
[1736855778133,0.31079,3219.0,3218.9,42.3508]
[1736855779230,0.31079,3219.0,3218.9,42.04]
[1736855779436,0.31079,3219.0,3218.9,42.3508]
[1736855780440,0.31079,3219.0,3218.9,42.04]
[1736855780836,0.31079,3219.0,3218.9,40.8]
[1736855781940,0.31082,3218.7,3218.6,0.31083]
[1736855782240,0.3108,3218.9,3218.8,2.75929191]
[1736855783141,0.3108,3218.9,3218.8,43.24849191]
[1736855783341,0.3108,3218.9,3218.8,43.55930191]
[1736855784846,0.3108,3218.9,3218.8,40.8]
[1736855787548,0.3108,3218.9,3218.5,6.89629191]
[1736855787549,0.31083,3218.6,3218.5,3.2078]
[1736855788141,0.31083,3218.6,3218.5,40.8]
[1736855796947,0.31083,3218.6,3218.5,41.11084]
[1736855798055,0.31083,3218.7,3218.6,0.31082]
[1736855800549,1.4273,3218.8,3218.5,40.8]
[1736855800746,1.73812,3218.8,3218.7,0.31082]
[1736855801148,0.77592,3218.8,3218.7,3.51862]
[1736855803356,0.77592,3218.8,3218.7,0.31082]
[1736855803654,0.77592,3218.8,3218.7,3.51862]
[1736855808858,0.77592,3218.8,3218.7,0.31082]
[1736855809059,0.77592,3218.8,3218.7,3.51862]
[1736855810058,0.4651,3218.8,3218.7,3.51862]
[1736855810258,0.77591,3218.8,3218.7,3.51862]
[1736855814765,0.77591,3218.8,3218.7,3.2078]
[1736855815670,0.31083,3218.6,3218.5,41.11084]
[1736855816366,0.31083,3218.6,3218.5,40.8]
[1736855816860,0.3109,3218.0,3217.9,3.2078]
[1736855817061,0.3109,3218.0,3217.8,0.3109]
[1736855817269,1.7408,3217.9,3217.8,0.3109]
[1736855817469,1.4299,3217.9,3217.7,1.24]
[1736855817766,0.31091,3217.8,3217.7,1.55091]
[1736855818472,0.31091,3217.8,3217.7,42.35091]
[1736855820278,1.74081,3217.9,3217.8,0.31091]
[1736855821670,1.74081,3217.9,3217.8,41.11091]
[1736855822372,1.74081,3217.9,3217.8,40.8]
[1736855823071,0.31094,3217.5,3217.4,3.2078]
[1736855824278,1.7408,3217.9,3217.4,3.2078]
[1736855824479,1.7408,3217.9,3217.8,44.31871]
[1736855826077,1.7408,3217.9,3217.8,44.0078]
[1736855826377,1.7408,3217.9,3217.8,40.8]
[1736855828577,1.7408,3217.9,3217.8,41.11091]
[1736855829478,1.7408,3217.9,3217.8,40.8]
[1736855829777,0.4811,3217.9,3217.8,46.45629191]
[1736855830078,0.9758,3218.4,3218.3,0.31086]
[1736855830279,1.28665,3218.4,3218.3,0.31086]
[1736855832180,0.9758,3218.4,3218.1,2.44849191]
[1736855832383,0.80346,3218.3,3218.2,0.31086]
[1736855832884,0.80346,3218.3,3218.1,2.44849191]
[1736855832885,0.31087,3218.2,3218.1,2.75936191]
[1736855835677,0.31087,3218.2,3218.1,0.31087]
[1736855835985,0.31087,3218.2,3218.1,0.31088]
[1736855837085,0.4926,3218.3,3218.2,0.31087]
[1736855837584,0.80346,3218.3,3218.2,0.31087]
[1736855837987,0.4926,3218.3,3218.1,2.44849191]
[1736855838184,0.4926,3218.3,3218.0,3.2078]
[1736855838386,0.4926,3218.3,3218.0,3.51868]
[1736855838387,0.31088,3218.1,3218.0,3.51868]
[1736855839485,0.31087,3218.2,3218.1,0.31087]
[1736855839784,0.31087,3218.2,3218.0,3.2078]
[1736855839785,0.31088,3218.1,3218.0,3.51868]
[1736855841880,0.31088,3218.1,3218.0,3.2078]
[1736855842385,0.31088,3218.1,3218.0,3.51869]
[1736855843184,0.31087,3218.2,3218.1,0.31087]
[1736855843485,0.80346,3218.3,3218.2,0.31087]
[1736855845890,0.31087,3218.2,3218.1,3.24087191]
[1736855846089,0.31087,3218.2,3218.1,0.31088]
[1736855849993,0.31087,3218.2,3218.1,3.51868]
[1736855851681,0.31087,3218.2,3218.1,5.96717191]
[1736855861095,0.4926,3218.3,3218.1,5.65629191]
[1736855861404,0.4926,3218.3,3218.2,0.31087]
[1736855861596,0.4926,3218.3,3218.2,0.80827]
[1736855862200,0.31085,3218.4,3218.2,0.4974]
[1736855862407,0.31085,3218.4,3218.3,0.31086]
[1736855862702,0.31085,3218.4,3218.3,0.78186]
[1736855864002,0.31085,3218.5,3218.4,0.31084]
[1736855864201,0.31085,3218.5,3218.4,2.75933191]
[1736855867405,0.4807,3218.6,3218.4,2.44849191]
[1736855867707,0.79153,3218.6,3218.5,0.31084]
[1736855867906,0.4807,3218.6,3218.5,0.31084]
[1736855868106,0.79153,3218.6,3218.5,3.51864]
[1736855873408,0.31083,3218.6,3218.5,3.51864]
[1736855873705,0.7822,3218.9,3218.8,0.3108]
[1736855873907,0.7822,3218.9,3218.8,2.75929191]
[1736855874208,0.7822,3218.9,3218.8,43.55929191]
[1736855874707,0.4714,3218.9,3218.8,43.55929191]
[1736855874908,0.7822,3218.9,3218.8,43.55929191]
[1736855875807,0.4714,3218.9,3218.8,43.55929191]
[1736855877303,0.9437,3219.3,3218.8,43.24849191]
[1736855877503,1.73128,3219.3,3219.2,2.75926191]
[1736855880599,1.4205,3219.3,3219.0,3.2078]
[1736855880802,1.4205,3219.3,3218.9,2.44849191]
[1736855880803,0.31079,3219.0,3218.9,2.75928191]
[1736855881704,0.31079,3219.0,3218.9,2.44849191]
[1736855882411,0.31079,3219.0,3218.9,2.75929191]
[1736855882806,0.31079,3219.0,3218.9,2.44849191]
[1736855883917,0.31079,3219.0,3218.9,2.75929191]
[1736855889012,1.4205,3219.3,3218.9,2.75929191]
[1736855889212,0.31078,3219.2,3219.1,0.31077]
[1736855890213,0.31078,3219.2,3219.1,3.51857]
[1736855893018,0.31078,3219.2,3219.1,3.2078]
[1736855893219,0.31078,3219.2,3219.1,3.51858]
[1736855895524,0.31078,3219.2,3219.1,4.6777539]
[1736855896425,0.31078,3219.2,3219.1,4.3669739]
[1736855896627,4.88163657,3220.5,3219.1,4.3669739]
[1736855896923,0.31076,3219.5,3219.4,0.31074]
[1736855897923,0.9542,3219.6,3219.4,1.1591739]
[1736855898122,1.26494,3219.6,3219.5,0.31074]
[1736855899425,1.26494,3219.6,3219.5,2.75858927]
[1736855900523,1.26494,3219.6,3219.5,5.96638927]
[1736855901218,0.9542,3219.6,3219.5,5.96638927]
[1736855901732,0.4873,3219.6,3219.5,5.96638927]
[1736855901927,0.4712,3219.7,3219.6,0.31073]
[1736855902322,0.4712,3219.7,3219.6,0.79833]
[1736855902526,0.4712,3219.7,3219.6,41.59833]
[1736855903228,0.4712,3219.7,3219.6,41.59537812]
[1736855916335,0.4712,3219.7,3219.6,41.10777812]
[1736855921450,0.4712,3219.7,3219.6,42.26626831]
[1736855923434,0.43,3219.7,3219.6,43.4247585]
[1736855923939,0.43,3219.7,3219.6,42.26626831]
[1736855924140,0.43,3219.7,3219.6,43.4247585]
[1736855927148,0.43,3219.7,3219.6,42.26626831]
[1736855935047,0.43,3219.7,3219.6,45.47406831]
[1736855942559,0.43,3219.7,3219.6,46.6325585]
[1736855942560,0.1728431,3219.7,3219.6,46.6325585]
[1736855943150,0.1728431,3219.7,3219.6,45.47406831]
[1736855943749,0.1728431,3219.7,3219.6,46.6325585]
[1736855944356,0.1728431,3219.7,3219.6,45.47406831]
[1736855944755,0.1728431,3219.7,3219.6,46.6325585]
[1736855945262,0.1728431,3219.7,3219.6,45.47406831]
[1736855946055,0.1728431,3219.7,3219.6,42.26626831]
[1736855946359,0.1728431,3219.7,3219.6,45.47406831]
[1736855946555,0.1728431,3219.7,3219.6,46.6325585]
[1736855951875,0.1728431,3219.7,3219.6,46.6325585]
[1736855956062,0.1728431,3219.7,3219.6,45.47406831]
[1736855956271,0.1728431,3219.7,3219.6,46.6325585]
[1736855957967,0.1728431,3219.7,3219.6,43.4247585]
[1736855958172,0.1728431,3219.7,3219.6,46.6325585]
[1736855961969,0.1728431,3219.7,3219.6,45.47406831]
[1736855963178,0.1728431,3219.7,3219.6,44.31557812]
[1736855963473,0.4835631,3219.7,3219.6,44.0078]
[1736855964270,5.4835631,3219.7,3219.6,44.0078]
[1736855965168,5.4835631,3219.7,3219.6,3.2078]
[1736855965367,0.31074,3219.5,3219.4,1.15849019]
[1736855965570,0.31077,3219.2,3219.1,3.2078]
[1736855965770,0.31077,3219.2,3219.1,44.0078]
[1736855966171,0.31077,3219.2,3219.1,44.31858]
[1736855967593,0.31077,3219.2,3219.1,45.16629019]
[1736855967890,0.31077,3219.2,3219.1,45.47707019]
[1736855968391,0.1728431,3219.7,3219.1,45.16629019]
[1736855968688,0.1728431,3219.7,3219.5,0.31074]
[1736855968689,1.25084,3219.6,3219.5,0.31074]
[1736855968878,1.25084,3219.6,3219.5,1.46923019]
[1736855969082,1.25084,3219.6,3219.5,1.15849019]
[1736855969484,0.9401,3219.6,3219.1,44.0078]
[1736855969690,0.31076,3219.4,3219.3,0.31076]
[1736855969984,0.31077,3219.2,3219.1,44.31858]
[1736855970177,0.31077,3219.2,3219.1,44.0078]
[1736855970379,0.31077,3219.2,3219.1,44.31858]
[1736855970788,0.31077,3219.2,3219.1,44.0078]
[1736855971185,0.31077,3219.2,3219.1,44.31858]
[1736855971487,0.31077,3219.2,3219.1,45.47707019]
[1736855972689,0.31077,3219.3,3219.1,45.47706019]
[1736855973090,0.4939,3219.2,3219.1,45.47706019]
[1736855976291,0.9401,3219.6,3219.4,0.31075]
[1736855976584,0.9401,3219.6,3219.5,1.46923019]
[1736855976788,0.4732,3219.6,3219.5,4.67703019]
[1736855977391,0.31073,3219.7,3219.6,0.31073]
[1736855978189,0.80371,3219.9,3219.8,0.31071]
[1736855978393,0.80371,3219.9,3219.8,1.15849019]
[1736855978791,0.493,3219.9,3219.8,1.46920019]
[1736855979488,0.31068,3220.2,3220.0,0.31069]
[1736855979683,0.31068,3220.2,3220.1,1.15849019]
[1736855980086,0.31068,3220.2,3220.1,42.26918019]
[1736855981196,0.31068,3220.2,3220.1,41.95849019]
[1736855981798,0.31068,3220.2,3220.1,40.8]
[1736855983195,0.31068,3220.2,3220.1,41.11069]
[1736855983394,0.31068,3220.2,3220.1,40.8]
[1736855984093,0.31068,3220.2,3220.1,1.15849019]
[1736855985993,0.31069,3220.0,3219.9,41.95849019]
[1736855987195,0.77969,3220.0,3219.9,41.95849019]
[1736855987595,0.77969,3220.0,3219.9,1.15849019]
[1736855990798,0.31069,3220.0,3219.9,1.64519019]
[1736855991103,0.31069,3220.0,3219.9,1.95589019]
[1736855991302,0.31069,3220.0,3219.9,1.64519019]
[1736855992206,0.31069,3220.0,3219.9,42.44519019]
[1736855998709,0.31069,3220.0,3219.9,41.95849019]
[1736855999205,0.31069,3220.0,3219.9,40.8]
[1736856000703,0.31069,3220.0,3219.9,41.95849019]
[1736856001404,0.31069,3220.0,3219.9,42.26919019]
[1736856001711,0.31069,3220.0,3219.9,41.95849019]
[1736856002410,0.31069,3220.0,3219.9,42.26919019]
[1736856003206,0.31069,3220.2,3220.1,0.31068]
[1736856003513,3.51847,3220.3,3220.2,0.31068]
[1736856003807,0.4796,3220.5,3220.1,1.15849019]
[1736856004108,0.4796,3220.5,3220.0,2.08159019]
[1736856004109,0.31066,3220.4,3220.3,0.31066]
[1736856005007,3.2078,3220.7,3220.3,1.15849019]
[1736856005208,0.002,3221.0,3220.6,1.15849019]
[1736856005411,0.002,3221.0,3220.9,2.75596085]
[1736856005812,0.002,3221.0,3220.9,40.8]
[1736856006017,0.3126,3221.0,3220.9,40.8]
[1736856006315,0.002,3221.0,3220.5,0.31064]
[1736856006612,0.002,3221.0,3220.9,2.75596085]
[1736856006818,0.002,3221.0,3220.9,43.55596085]
[1736856007113,0.31059,3221.2,3221.0,0.31059]
[1736856007315,0.31059,3221.2,3221.1,0.31059]
[1736856007611,3.2078,3221.5,3221.1,0.31059]
[1736856007612,0.31057,3221.4,3221.2,0.31057]
[1736856007807,3.2078,3221.5,3221.2,2.44535085]
[1736856008012,3.2078,3221.5,3221.4,0.31056]
[1736856008712,3.2078,3221.9,3221.2,2.44535085]
[1736856008914,3.2078,3221.9,3221.8,2.44535085]
[1736856009114,3.6833,3222.7,3221.8,3.68335085]
[1736856009319,3.2078,3222.3,3221.8,1.238]
[1736856009611,3.2078,3222.4,3221.9,43.24535085]
[1736856009815,0.4755,3222.7,3222.2,2.44535085]
[1736856010005,0.4755,3222.7,3221.9,46.91085085]
[1736856010212,0.31044,3222.6,3221.9,44.01355085]
[1736856010417,2.92085085,3222.7,3221.9,41.5682]
[1736856010604,0.3105,3222.0,3221.9,40.8]
[1736856010809,2.44535085,3222.1,3221.4,0.4577]
[1736856011012,3.2078,3221.7,3221.4,0.4577]
[1736856011312,0.31054,3221.7,3221.4,41.2577]
[1736856011615,0.31054,3221.7,3221.4,0.4577]
[1736856011822,3.6833,3222.1,3221.5,2.44535085]
[1736856012008,3.6833,3222.1,3221.8,2.44535085]
[1736856012316,3.2078,3222.9,3222.0,0.3105]
[1736856012508,0.31046,3222.5,3222.1,0.4785]
[1736856012710,0.31047,3222.4,3222.1,0.4785]
[1736856013212,3.7049,3222.8,3222.1,0.4785]
[1736856013415,0.31046,3222.4,3222.1,0.78899]
[1736856013611,0.31046,3222.4,3222.1,0.4785]
[1736856013816,0.31046,3222.5,3222.1,0.78899]
[1736856014216,0.31046,3222.4,3222.1,0.4785]
[1736856014406,3.7049,3222.8,3222.1,0.4785]
[1736856014718,3.7049,3222.8,3222.2,40.8]
[1736856015230,3.7049,3222.8,3222.1,0.4785]
[1736856015231,0.31048,3222.2,3222.1,0.4785]
[1736856015417,3.2078,3222.4,3221.7,3.2078]
[1736856015612,0.486,3222.3,3221.8,41.2551]
[1736856015812,3.2078,3221.9,3221.5,2.44535085]
[1736856016015,3.2078,3221.9,3221.3,1.237]
[1736856016220,0.4992,3222.2,3221.0,0.4551]
[1736856016221,0.31058,3221.2,3221.0,0.4551]
[1736856017018,0.486,3221.4,3221.1,2.44535085]
[1736856017325,3.2078,3221.9,3221.2,0.31057]
[1736856017618,3.2078,3221.9,3221.4,2.44535085]
[1736856018207,3.51831,3221.9,3221.6,0.31054]
[1736856018412,3.51831,3221.9,3221.7,0.4647]
[1736856018620,3.2078,3221.9,3221.7,2.91005085]
[1736856019112,3.2078,3221.9,3221.8,0.31052]
[1736856019713,3.2078,3221.9,3221.8,40.8]
[1736856019911,3.2078,3221.9,3221.8,41.11052]
[1736856020718,3.2078,3221.9,3221.8,40.8]
[1736856020913,3.51831,3221.9,3221.8,40.8]
[1736856021120,3.2078,3221.9,3221.8,40.8]
[1736856021419,3.51831,3221.9,3221.8,40.8]
[1736856024520,3.2078,3221.9,3221.3,0.4576]
[1736856024718,0.31056,3221.4,3221.3,0.4576]
[1736856024919,0.9462,3221.8,3221.3,0.4576]
[1736856025118,0.31055,3221.6,3221.4,43.24535085]
[1736856025319,0.31053,3221.8,3221.6,0.31054]
[1736856025520,3.51832,3221.9,3221.7,2.93875085]
[1736856025726,0.31052,3221.8,3221.7,2.93875085]
[1736856026216,0.31052,3221.8,3221.7,3.24928085]
[1736856026419,0.31052,3221.8,3221.7,44.04928085]
[1736856026619,0.31052,3221.8,3221.7,43.73875085]
[1736856027419,0.31052,3221.8,3221.7,41.2934]
[1736856027620,0.31052,3221.8,3221.7,40.8]
[1736856027823,3.2078,3221.9,3221.3,0.4576]
[1736856028021,0.31057,3221.3,3221.2,1.7547]
[1736856028224,0.31057,3221.3,3221.2,42.5547]
[1736856028620,3.2078,3221.4,3221.2,42.5547]
[1736856029019,0.31057,3221.4,3221.2,42.86527]
[1736856029220,3.2078,3221.6,3221.2,42.86527]
[1736856029221,0.31057,3221.3,3221.2,42.5547]
[1736856031026,0.31057,3221.3,3221.2,40.8]
[1736856034419,0.31057,3221.3,3221.2,41.11058]
[1736856034627,0.31057,3221.3,3221.2,40.8]
[1736856038624,0.31061,3220.9,3220.8,0.4962]
[1736856039128,0.31061,3220.9,3220.8,41.2962]
[1736856041926,0.76711,3220.9,3220.8,41.2962]
[1736856043123,0.76711,3220.9,3220.8,40.8]
[1736856043328,0.9404,3220.9,3219.9,6.14725085]
[1736856043535,0.31069,3220.2,3220.1,0.31067]
[1736856043832,0.31069,3220.2,3220.1,41.11067]
[1736856044223,0.31069,3220.2,3220.1,40.8]
[1736856045028,0.31069,3220.2,3220.1,41.11069]
[1736856045231,0.31069,3220.2,3220.1,40.8]
[1736856045626,0.31069,3220.2,3220.1,41.11069]
[1736856045930,0.31069,3220.2,3220.1,40.8]
[1736856046131,3.51847,3220.4,3220.3,0.31067]
[1736856046934,0.31067,3220.3,3220.2,2.75602085]
[1736856047232,0.31061,3221.0,3220.9,0.3106]
[1736856047432,0.31061,3221.0,3220.9,2.75595085]
[1736856047631,0.31061,3221.0,3220.9,2.44535085]
[1736856047937,0.31061,3221.0,3220.9,40.8]
[1736856051538,0.31065,3220.5,3220.4,0.76364]
[1736856051735,0.31064,3220.7,3220.6,0.31063]
[1736856051931,0.31062,3220.9,3220.8,0.31062]
[1736856057546,0.31062,3220.8,3220.7,3.21006085]
[1736856058245,0.31062,3220.8,3220.7,3.70726085]
[1736856058447,3.51842,3220.8,3220.7,2.94255085]
[1736856058943,3.51842,3220.8,3220.7,0.4972]
[1736856061046,3.51842,3220.8,3220.7,2.94255085]
[1736856062745,3.51842,3220.8,3220.7,3.25318085]
[1736856063440,0.4821,3221.1,3220.7,3.71068085]
[1736856063441,0.3106,3221.1,3220.7,3.71068085]
[1736856063644,0.31059,3221.1,3221.0,2.75595085]
[1736856064246,0.31059,3221.1,3221.0,2.44535085]
[1736856064441,3.2078,3221.2,3220.7,3.40005085]
[1736856064747,3.2078,3221.2,3220.7,0.4972]
[1736856064748,0.31062,3220.8,3220.7,0.4972]
[1736856065147,3.51842,3220.8,3220.7,0.4972]
[1736856066348,3.51842,3220.8,3220.6,40.8]
[1736856066349,0.31063,3220.7,3220.6,40.8]
[1736856066550,0.31067,3220.3,3220.2,0.471]
[1736856066750,3.51847,3220.3,3220.2,0.471]
[1736856067548,3.51847,3220.3,3220.2,41.271]
[1736856069949,3.51847,3220.3,3220.2,40.8]
[1736856070447,3.2078,3220.3,3219.5,3.69935085]
[1736856070650,0.31071,3219.8,3219.7,0.4763]
[1736856071050,0.31071,3219.8,3219.7,41.2763]
[1736856071944,0.31071,3219.8,3219.7,40.8]
[1736856072149,0.31071,3219.8,3218.9,2.44535085]
[1736856072150,0.31078,3219.1,3219.0,0.9317]
[1736856072750,0.31078,3219.1,3219.0,41.2634]
[1736856072953,3.2078,3219.2,3218.6,2.91365085]
[1736856073153,0.31082,3218.7,3218.6,0.4683]
[1736856073447,0.31085,3218.4,3218.3,2.44535085]
[1736856073841,3.2078,3218.8,3218.3,2.44535085]
[1736856074149,0.31085,3218.5,3218.4,41.11085]
[1736856074362,0.31085,3218.5,3218.4,40.8]
[1736856074956,0.31085,3218.5,3218.4,41.11085]
[1736856075255,0.31085,3218.5,3218.4,40.8]
[1736856075953,0.31085,3218.5,3218.4,41.11085]
[1736856076748,0.31083,3218.6,3218.4,40.8]
[1736856077052,0.31083,3218.6,3218.5,0.4764]
[1736856077554,0.31083,3218.6,3218.5,0.961]
[1736856079357,0.31083,3218.6,3218.5,41.761]
[1736856079845,0.31083,3218.6,3218.5,42.07184]
[1736856080242,0.31083,3218.6,3218.5,41.761]
[1736856080754,0.31083,3218.6,3218.5,42.07184]
[1736856081752,0.31083,3218.6,3218.5,41.761]
[1736856082557,0.31083,3218.6,3218.5,42.07184]
[1736856083852,3.2078,3218.8,3218.5,41.761]
[1736856084054,3.51862,3218.8,3218.7,2.75617085]
[1736856084755,3.2078,3218.8,3218.7,2.75617085]
[1736856084958,3.51861,3218.8,3218.7,2.75617085]
[1736856086354,0.31081,3218.8,3218.7,2.75617085]
[1736856087456,0.77694,3219.2,3218.7,2.44535085]
[1736856087657,0.31081,3218.9,3218.8,0.3108]
[1736856088867,0.31081,3218.8,3218.7,2.75616085]
[1736856091764,0.31081,3218.8,3218.7,2.44535085]
[1736856092968,0.31081,3218.8,3218.7,2.75617085]
[1736856093771,0.31081,3218.8,3218.7,2.44535085]
[1736856095763,3.707,3218.9,3218.5,41.761]
[1736856095974,0.31083,3218.6,3218.5,41.761]
[1736856097666,0.31083,3218.6,3218.5,40.8]
[1736856105485,0.85673,3218.6,3218.5,40.8]
[1736856107385,9.23825085,3218.6,3216.8,0.7775]
[1736856107590,0.31099,3216.9,3216.8,0.4723]
[1736856108785,2.83215638,3217.1,3216.6,0.463]
[1736856108989,0.31101,3216.7,3216.6,0.463]
[1736856110191,5.65315085,3216.8,3216.4,0.4844]
[1736856110484,0.31103,3216.5,3216.4,0.4844]
[1736856113488,0.31103,3216.5,3216.4,41.2844]
[1736856115492,0.31103,3216.5,3216.4,40.8]
[1736856115795,0.31105,3216.3,3216.2,0.78696]
[1736856115990,0.31105,3216.3,3216.2,0.4759]
[1736856116187,0.31105,3216.3,3216.2,41.2759]
[1736856117495,0.31105,3216.3,3216.2,40.8]
[1736856117694,0.31107,3216.1,3216.0,0.002]
[1736856124002,3.2078,3216.8,3216.0,5.002]
[1736856124195,0.311,3216.9,3216.6,2.44535085]
[1736856124396,0.311,3216.9,3216.8,0.311]
[1736856124699,0.31099,3217.0,3216.9,0.31099]
[1736856124895,0.31099,3217.0,3216.8,40.8]
[1736856124896,3.6821,3217.3,3216.8,40.8]
[1736856125201,0.31099,3216.9,3216.8,0.311]
[1736856126601,3.2078,3217.3,3216.7,41.7307]